bitfinex/quotes_BTCUSD_20260101
["timestamp","ask_amount","ask_price","bid_price","bid_amount"]
[1767252631459,0.01144,87671.0,87662.0,0.01140745]
[1767252631659,0.01144,87671.0,87664.0,0.01140719]
[1767252631894,0.01144,87671.0,87663.0,0.01140732]
[1767252632267,0.01144,87671.0,87665.0,0.01140706]
[1767252632468,0.01144,87671.0,87664.0,0.01140719]
[1767252633264,0.01144,87671.0,87666.0,0.06030146]
[1767252633467,0.01144,87671.0,87668.0,0.01140667]
[1767252634107,0.01144,87671.0,87667.0,0.0114068]
[1767252634470,0.01144,87671.0,87668.0,0.01140667]
[1767252634666,0.01144,87671.0,87667.0,0.0114068]
[1767252635401,0.01144,87671.0,87668.0,0.01140667]
[1767252635920,0.01144,87671.0,87667.0,0.0114068]
[1767252636329,0.01144,87671.0,87667.0,0.06030133]
[1767252637506,0.04598728,87680.0,87667.0,0.06030133]
[1767252637821,0.01144,87679.0,87667.0,0.06030133]
[1767252638000,0.01144,87679.0,87668.0,0.01140667]
[1767252638187,0.000416,87668.0,87667.0,0.06030133]
[1767252638610,0.000416,87668.0,87665.0,0.06030159]
[1767252638793,0.01144,87671.0,87665.0,0.04889453]
[1767252638991,0.01144,87671.0,87664.0,0.01140719]
[1767252639574,0.01144,87671.0,87663.0,0.01140732]
[1767252640708,0.01144,87671.0,87661.0,0.01140758]
[1767252641090,0.01144,87671.0,87662.0,0.01140745]
[1767252641534,0.01144,87671.0,87663.0,0.01140732]
[1767252642146,0.04598728,87676.0,87663.0,0.01140732]
[1767252642353,0.01144,87670.0,87663.0,0.01140732]
[1767252643343,0.01144,87670.0,87662.0,0.01140745]
[1767252644187,0.00040899,87666.0,87662.0,0.01140745]
[1767252644348,0.01144,87670.0,87662.0,0.01140745]
[1767252648134,0.04598728,87676.0,87662.0,0.01140745]
[1767252648335,0.01144,87675.0,87662.0,0.01140745]
[1767252648560,0.01144,87675.0,87661.0,0.01140758]
[1767252648786,0.01144,87675.0,87662.0,0.01140745]
[1767252649217,0.01144,87675.0,87663.0,0.01140732]
[1767252651668,0.01144,87674.0,87663.0,0.01140732]
[1767252651876,0.01144,87674.0,87662.0,0.01140745]
[1767252652072,0.01148036,87674.0,87663.0,0.01140732]
[1767252653125,0.01148036,87674.0,87662.0,0.01140745]
[1767252653477,0.01144,87673.0,87663.0,0.01140732]
[1767252653742,0.01144,87672.0,87663.0,0.01140732]
[1767252654106,0.01144,87671.0,87663.0,0.01140732]
[1767252654931,0.01144,87671.0,87664.0,0.01140719]
[1767252655140,4.036e-05,87674.0,87664.0,0.01140719]
[1767252655335,0.01144,87670.0,87664.0,0.01140719]
[1767252655554,4.036e-05,87674.0,87663.0,0.01140732]
[1767252655758,0.01144,87673.0,87663.0,0.01140732]
[1767252656325,0.01144,87673.0,87661.0,0.01140758]
[1767252656745,4.036e-05,87674.0,87661.0,0.01140758]
[1767252656921,0.01144,87673.0,87661.0,0.01140758]
[1767252657119,0.01144,87673.0,87662.0,0.01140745]
[1767252657373,0.00039846,87663.0,87662.0,0.01140745]
[1767252660516,0.00992741,87670.0,87666.0,0.01140693]
[1767252660712,0.00992741,87670.0,87667.0,0.05757292]
[1767252661163,0.00992741,87670.0,87667.0,0.0114068]
[1767252661460,4.036e-05,87674.0,87667.0,0.0114068]
[1767252661748,0.01144,87672.0,87667.0,0.0114068]
[1767252662147,0.01144,87672.0,87666.0,0.01140693]
[1767252662374,0.01144,87672.0,87667.0,0.0114068]
[1767252663747,4.036e-05,87674.0,87667.0,0.0114068]
[1767252663944,0.01144,87673.0,87667.0,0.0114068]
[1767252664367,0.01144,87673.0,87668.0,0.01140667]
[1767252665535,4.036e-05,87674.0,87668.0,0.01140667]
[1767252665706,0.01144,87673.0,87668.0,0.01140667]
[1767252666423,0.01144,87673.0,87669.0,0.01140654]
[1767252666599,0.01144,87673.0,87668.0,0.01140667]
[1767252666807,0.01144,87673.0,87666.0,0.01140693]
[1767252667003,0.01144,87673.0,87667.0,0.0114068]
[1767252667184,0.01144,87673.0,87666.0,0.01140693]
[1767252667617,0.01148036,87674.0,87666.0,0.01140693]
[1767252668278,0.01148036,87674.0,87665.0,0.01140706]
[1767252669849,0.01148036,87674.0,87666.0,0.01140693]
[1767252670047,4.036e-05,87674.0,87666.0,0.01140693]
[1767252670405,0.01144,87673.0,87666.0,0.01140693]
[1767252671546,0.01144,87673.0,87667.0,0.0114068]
[1767252671709,0.01148036,87674.0,87666.0,0.01140693]
[1767252671871,0.01148036,87674.0,87667.0,0.0114068]
[1767252672073,0.01148036,87674.0,87666.0,0.01140693]
[1767252672557,0.01148036,87674.0,87667.0,0.0114068]
[1767252672740,0.000549,87667.0,87663.0,0.11460957]
[1767252672940,0.01148036,87674.0,87663.0,0.11460957]
[1767252673155,0.01148036,87674.0,87664.0,0.01140719]
[1767252673352,4.036e-05,87674.0,87664.0,0.01140719]
[1767252673533,0.01144,87673.0,87664.0,0.01140719]
[1767252673917,0.01144,87673.0,87665.0,0.01140706]
[1767252674253,0.01144,87673.0,87664.0,0.01140719]
[1767252674552,0.01144,87673.0,87665.0,0.01140706]
[1767252675557,0.01144,87673.0,87666.0,0.01140693]
[1767252676394,4.036e-05,87674.0,87666.0,0.01140693]
[1767252676604,0.01144,87673.0,87665.0,0.01140706]
[1767252676982,4.036e-05,87674.0,87665.0,0.01140706]
[1767252677185,0.01144,87673.0,87665.0,0.01140706]
[1767252677382,4.036e-05,87674.0,87665.0,0.01140706]
[1767252677593,0.01144,87673.0,87665.0,0.01140706]
[1767252677791,0.01144,87673.0,87664.0,0.01140719]
[1767252677992,4.036e-05,87674.0,87665.0,0.01140706]
[1767252678194,0.01144,87672.0,87666.0,0.01140693]
[1767252679551,0.01144,87672.0,87667.0,0.0114068]
[1767252680408,0.01144,87672.0,87666.0,0.01140693]
[1767252680611,0.01144,87672.0,87667.0,0.0114068]
[1767252682352,0.01144,87672.0,87668.0,0.01140667]
[1767252682696,0.01144,87672.0,87667.0,0.0114068]
[1767252682889,0.01144,87672.0,87666.0,0.01140693]
[1767252683099,0.01144,87672.0,87667.0,0.0114068]
[1767252683917,0.01144,87672.0,87666.0,0.01140693]
[1767252684445,0.01144,87672.0,87667.0,0.0114068]
[1767252687823,0.01144,87672.0,87668.0,0.01140667]
[1767252690283,0.01144,87672.0,87669.0,0.01140654]
[1767252690505,0.01144,87672.0,87669.0,0.06843906]
[1767252691162,0.01144,87672.0,87669.0,0.01140654]
[1767252706949,4.036e-05,87674.0,87671.0,0.01140628]
[1767252707389,4.036e-05,87674.0,87670.0,0.01140641]
[1767252707591,4.036e-05,87674.0,87671.0,0.01140628]
[1767252714773,0.04793678,87686.0,87673.0,0.01140602]
[1767252714999,0.0001449,87689.0,87673.0,0.01140602]
[1767252715000,0.0115849,87681.0,87678.0,0.01140536]
[1767252715335,0.0115849,87681.0,87677.0,0.01140549]
[1767252716479,0.0115849,87681.0,87676.0,0.01140562]
[1767252716700,0.0115849,87681.0,87675.0,0.01140575]
[1767252716912,0.0115849,87681.0,87676.0,0.01140562]
[1767252717430,0.0115849,87681.0,87675.0,0.01140575]
[1767252717566,0.0115849,87681.0,87676.0,0.01140562]
[1767252718291,0.0115849,87681.0,87675.0,0.01140575]
[1767252718487,0.0115849,87681.0,87676.0,0.01140562]
[1767252718695,0.0115849,87681.0,87675.0,0.01140575]
[1767252719249,0.0115849,87681.0,87676.0,0.01140562]
[1767252719656,0.0115849,87681.0,87675.0,0.01140575]
[1767252719955,0.0115849,87681.0,87676.0,0.01140562]
[1767252720409,0.0001449,87681.0,87678.0,0.01140536]
[1767252720605,0.0001449,87681.0,87678.0,0.0587568]
[1767252720905,0.0001449,87681.0,87677.0,0.01140549]
[1767252721110,0.00055,87677.0,87674.0,0.01140589]
[1767252721935,0.00055,87677.0,87672.0,0.05703023]
[1767252721936,0.0001449,87681.0,87672.0,0.01140615]
[1767252722337,0.0001449,87681.0,87673.0,0.01140602]
[1767252722496,0.00055,87673.0,87672.0,0.01140615]
[1767252722885,0.0001449,87681.0,87673.0,0.01140602]
[1767252723084,0.0001449,87681.0,87674.0,0.01140589]
[1767252723400,0.0001449,87681.0,87673.0,0.01180355]
[1767252724384,0.0001449,87681.0,87674.0,0.01140589]
[1767252725171,0.0001449,87681.0,87673.0,0.01180355]
[1767252726180,0.0001449,87681.0,87674.0,0.01140589]
[1767252727517,0.0001449,87681.0,87673.0,0.01180355]
[1767252729263,0.0001449,87681.0,87674.0,0.01140589]
[1767252729782,0.0001449,87681.0,87673.0,0.01180355]
[1767252730897,0.0001449,87681.0,87674.0,0.01140589]
[1767252731197,0.04808168,87681.0,87673.0,0.00039753]
[1767252731501,0.04808168,87681.0,87673.0,0.01180355]
[1767252731677,0.04808168,87681.0,87674.0,0.01140589]
[1767252732804,0.04808168,87681.0,87675.0,0.01140575]
[1767252733303,0.04808168,87681.0,87676.0,0.01140562]
[1767252733669,0.04808168,87681.0,87675.0,0.01140575]
[1767252735690,0.04808168,87681.0,87674.0,0.01140589]
[1767252735998,0.04808168,87681.0,87673.0,0.01180355]
[1767252736246,0.04808168,87681.0,87674.0,0.01140589]
[1767252738244,0.04808168,87681.0,87675.0,0.01140575]
[1767252738614,0.04808168,87681.0,87674.0,0.01140589]
[1767252742330,0.04808168,87681.0,87676.0,0.01140562]
[1767252742539,0.04808168,87681.0,87675.0,0.01140575]
[1767252743659,0.0001449,87681.0,87675.0,0.01140575]
[1767252746998,0.0001449,87681.0,87676.0,0.01140562]
[1767252747222,9e-07,87681.0,87679.0,0.05702616]
[1767252761553,9e-07,87681.0,87679.0,0.05688219]
[1767252761906,9e-07,87681.0,87678.0,0.01140536]
[1767252762106,0.00055,87678.0,87676.0,0.06843328]
[1767252762307,0.00050753,87678.0,87676.0,0.06843328]
[1767252762621,9e-07,87681.0,87678.0,0.01140536]
[1767252764043,9e-07,87681.0,87679.0,0.05702619]
[1767252764489,9e-07,87681.0,87679.0,0.05651819]
[1767252771911,9e-07,87681.0,87678.0,0.06843174]
[1767252773364,9e-07,87681.0,87679.0,0.05702569]
[1767252775083,9e-07,87681.0,87678.0,0.06843174]
[1767252776477,9e-07,87681.0,87679.0,0.05702569]
[1767252777686,9e-07,87681.0,87679.0,0.05702574]
[1767252779308,9e-07,87681.0,87678.0,0.06843174]
[1767252779309,0.04731295,87680.0,87678.0,0.06843174]
[1767252779528,0.04727001,87680.0,87678.0,0.06843174]
[1767252779717,9e-07,87681.0,87678.0,0.01140536]
[1767252779924,9e-07,87681.0,87677.0,0.01140549]
[1767252780121,9e-07,87681.0,87678.0,0.01134876]
[1767252780483,9e-07,87681.0,87678.0,0.06837509]
[1767252780918,9e-07,87681.0,87678.0,0.06831806]
[1767252781522,9e-07,87681.0,87679.0,0.05702556]
[1767252783631,9e-07,87681.0,87678.0,0.06831806]
[1767252783950,9e-07,87681.0,87678.0,0.01140536]
[1767252785024,9e-07,87681.0,87677.0,0.01140549]
[1767252785227,9e-07,87681.0,87678.0,0.01140536]
[1767252786310,9e-07,87681.0,87678.0,0.06843219]
[1767252787095,9e-07,87681.0,87677.0,0.01140549]
[1767252787241,9e-07,87681.0,87678.0,0.01140536]
[1767252787442,9e-07,87681.0,87678.0,0.01134833]
[1767252787638,9e-07,87681.0,87678.0,0.01140536]
[1767252787845,9e-07,87681.0,87675.0,0.01140575]
[1767252788070,9e-07,87681.0,87676.0,0.01140562]
[1767252788678,9e-07,87681.0,87677.0,0.01140549]
[1767252789087,9e-07,87681.0,87676.0,0.01140562]
[1767252789289,9e-07,87681.0,87677.0,0.01140549]
[1767252789982,9e-07,87681.0,87676.0,0.01140562]
[1767252790409,9e-07,87681.0,87677.0,0.01140549]
[1767252790735,9e-07,87681.0,87676.0,0.01140562]
[1767252791227,9e-07,87681.0,87677.0,0.01140549]
[1767252791428,9e-07,87681.0,87676.0,0.01140562]
[1767252791570,9e-07,87681.0,87677.0,0.01140549]
[1767252792701,9e-07,87681.0,87678.0,0.01140536]
[1767252793219,9e-07,87681.0,87677.0,0.01140549]
[1767252793607,9e-07,87681.0,87678.0,0.01140536]
[1767252793943,9e-07,87681.0,87677.0,0.01140549]
[1767252795841,9e-07,87681.0,87678.0,0.01140536]
[1767252797474,9e-07,87681.0,87677.0,0.01140549]
[1767252797674,9e-07,87681.0,87678.0,0.01140536]
[1767252798019,9e-07,87681.0,87677.0,0.01140549]
[1767252799055,9e-07,87681.0,87678.0,0.01140536]
[1767252799555,9e-07,87681.0,87677.0,0.01140549]
[1767252800662,9e-07,87681.0,87678.0,0.01140536]
[1767252801032,9e-07,87681.0,87677.0,0.01140549]
[1767252801230,9e-07,87681.0,87678.0,0.01140536]
[1767252801636,9e-07,87681.0,87677.0,0.01140549]
[1767252801814,9e-07,87681.0,87678.0,0.01140536]
[1767252802180,9e-07,87681.0,87677.0,0.01140549]
[1767252802668,9e-07,87681.0,87676.0,0.01140562]
[1767252802813,9e-07,87681.0,87677.0,0.01140549]
[1767252803221,9e-07,87681.0,87678.0,0.01140536]
[1767252803556,9e-07,87681.0,87677.0,0.01140549]
[1767252804485,9e-07,87681.0,87678.0,0.01140536]
[1767252805928,9e-07,87681.0,87677.0,0.01140549]
[1767252806681,9e-07,87681.0,87678.0,0.01140536]
[1767252808032,9e-07,87681.0,87677.0,0.01140549]
[1767252808326,9e-07,87681.0,87678.0,0.01140536]
[1767252810449,9e-07,87681.0,87679.0,0.0570256]
[1767252811150,9e-07,87681.0,87679.0,0.10700008]
[1767252813515,9e-07,87681.0,87680.0,0.05702554]
[1767252813724,9e-07,87681.0,87680.0,0.10700002]
[1767252817202,9e-07,87681.0,87680.0,0.05702554]
[1767252817403,9e-07,87681.0,87680.0,0.10700002]
[1767252820764,9e-07,87681.0,87680.0,0.04997448]
[1767252823995,9e-07,87681.0,87678.0,0.06843164]
[1767252824237,9e-07,87681.0,87679.0,0.04997448]
[1767252827764,9e-07,87681.0,87679.0,0.05702571]
[1767252827969,9e-07,87681.0,87680.0,0.04997448]
[1767252830053,9e-07,87681.0,87678.0,0.11840623]
[1767252830228,9e-07,87681.0,87678.0,0.04997448]
[1767252830578,9e-07,87681.0,87678.0,0.06141448]
[1767252830786,9e-07,87681.0,87678.0,0.01144]
[1767252831009,9e-07,87681.0,87678.0,0.02284536]
[1767252831591,9e-07,87681.0,87678.0,0.01144]
[1767252832144,9e-07,87681.0,87678.0,0.02284536]
[1767252832425,9e-07,87681.0,87678.0,0.01144]
[1767252833180,0.04592426,87680.0,87674.0,0.01140589]
[1767252833403,0.04592426,87680.0,87673.0,0.01140602]
[1767252833685,9e-07,87681.0,87674.0,0.04564204]
[1767252834365,9e-07,87681.0,87674.0,0.03423615]
[1767252834869,9e-07,87681.0,87674.0,0.04564204]
[1767252835029,9e-07,87681.0,87675.0,0.01140575]
[1767252835442,9e-07,87681.0,87674.0,0.04564204]
[1767252838106,9e-07,87681.0,87674.0,0.03423615]
[1767252839555,9e-07,87681.0,87675.0,0.01140575]
[1767252842128,9e-07,87681.0,87676.0,0.01140562]
[1767252842306,9e-07,87681.0,87675.0,0.01140575]
[1767252842846,9e-07,87681.0,87674.0,0.04564204]
[1767252843598,9e-07,87681.0,87675.0,0.01140575]
[1767252844815,9e-07,87681.0,87674.0,0.04564204]
[1767252845135,9e-07,87681.0,87675.0,0.01140575]
[1767252845334,9e-07,87681.0,87676.0,0.01140562]
[1767252846478,9e-07,87681.0,87675.0,0.01140575]
[1767252847413,9e-07,87681.0,87677.0,0.01140549]
[1767252847624,9e-07,87681.0,87675.0,0.01140575]
[1767252848728,9e-07,87681.0,87676.0,0.01140562]
[1767252850741,9e-07,87681.0,87674.0,0.03423615]
[1767252852942,9e-07,87681.0,87674.0,0.04564204]
[1767252853294,9e-07,87681.0,87674.0,0.03423615]
[1767252854317,9e-07,87681.0,87674.0,0.04564204]
[1767252855063,9e-07,87681.0,87674.0,0.03423615]
[1767252856248,9e-07,87681.0,87674.0,0.04564204]
[1767252856443,9e-07,87681.0,87674.0,0.03423615]
[1767252861238,9e-07,87681.0,87674.0,0.04564204]
[1767252861756,9e-07,87681.0,87674.0,0.03423615]
[1767252864029,9e-07,87681.0,87676.0,0.01140562]
[1767252865176,9e-07,87681.0,87674.0,0.03423615]
[1767252865320,9e-07,87681.0,87674.0,0.04564204]
[1767252865528,9e-07,87681.0,87675.0,0.01140575]
[1767252865725,9e-07,87681.0,87674.0,0.04564204]
[1767252865931,9e-07,87681.0,87674.0,0.03423615]
[1767252870648,9e-07,87681.0,87674.0,0.10267125]
[1767252870850,9e-07,87681.0,87676.0,0.01140562]
[1767252871861,9e-07,87681.0,87677.0,0.01140549]
[1767252872465,9e-07,87681.0,87676.0,0.02281137]
[1767252872842,9e-07,87681.0,87677.0,0.01140549]
[1767252874312,9e-07,87681.0,87678.0,0.01140536]
[1767252874530,9e-07,87681.0,87677.0,0.01140549]
[1767252875541,9e-07,87681.0,87678.0,0.01140536]
[1767252875691,9e-07,87681.0,87677.0,0.01140549]
[1767252876538,9e-07,87681.0,87678.0,0.01140536]
[1767252877681,9e-07,87681.0,87677.0,0.04564164]
[1767252878319,9e-07,87681.0,87678.0,0.01140536]
[1767252878494,9e-07,87681.0,87677.0,0.04564164]
[1767252878700,9e-07,87681.0,87678.0,0.01140536]
[1767252881211,9e-07,87681.0,87677.0,0.04564164]
[1767252881709,9e-07,87681.0,87677.0,0.03423615]
[1767252885169,0.55722647,87690.0,87677.0,0.03423615]
[1767252885330,0.51615641,87690.0,87678.0,0.06087556]
[1767252886097,0.51615641,87690.0,87679.0,0.01140523]
[1767252886242,0.51615641,87690.0,87680.0,0.0114051]
[1767252886690,0.51615641,87690.0,87681.0,0.01140497]
[1767252887104,0.51615641,87690.0,87682.0,0.01140484]
[1767252887306,0.04685167,87696.0,87681.0,0.01140497]
[1767252887307,0.52759641,87692.0,87681.0,0.01140497]
[1767252888121,0.52759641,87692.0,87682.0,0.01140484]
[1767252888470,0.52759641,87692.0,87681.0,0.01140497]
[1767252888865,0.52759641,87692.0,87682.0,0.01140484]
[1767252889072,0.52759641,87692.0,87680.0,0.0114051]
[1767252889441,0.51615641,87690.0,87680.0,0.0114051]
[1767252889809,0.51615641,87690.0,87679.0,0.0114051]
[1767252890022,0.51615641,87690.0,87679.0,0.02281033]
[1767252890603,0.51615641,87690.0,87679.0,0.01140523]
[1767252891939,0.51615641,87690.0,87680.0,0.0114051]
[1767252892843,0.51615641,87690.0,87681.0,0.01140497]
[1767252893079,0.01144,87689.0,87683.0,0.01140471]
[1767252893569,0.01144,87689.0,87681.0,0.059771]
[1767252893770,0.01144,87689.0,87681.0,0.04836577]
[1767252893909,0.01144,87689.0,87682.0,0.01140484]
[1767252894263,0.01144,87689.0,87683.0,0.01140471]
[1767252896855,0.01144,87689.0,87684.0,0.01140458]
[1767252897056,0.04685167,87696.0,87685.0,0.01140445]
[1767252897263,0.04685167,87696.0,87686.0,0.01140432]
[1767252897468,0.0001449,87698.0,87685.0,0.01140445]
[1767252897794,0.0001449,87698.0,87683.0,0.05977048]
[1767252897931,0.01070809,87697.0,87684.0,0.01140458]
[1767252898174,0.0001449,87698.0,87684.0,0.01140458]
[1767252899294,0.0001449,87698.0,87685.0,0.01140445]
[1767252899748,0.0001449,87698.0,87684.0,0.01140458]
[1767252900960,0.0001449,87698.0,87683.0,0.04836577]
[1767252901116,0.0001449,87698.0,87683.0,0.05977048]
[1767252901322,0.0001449,87698.0,87684.0,0.01140458]
[1767252901869,0.04713125,87698.0,87683.0,0.05977048]
[1767252902075,0.04713125,87698.0,87682.0,0.02280955]
[1767252902241,0.04713125,87698.0,87682.0,0.01140471]
[1767252903934,0.51615641,87692.0,87682.0,0.01140471]
[1767252904234,0.01144,87691.0,87682.0,0.01140471]
[1767252905566,0.01144,87691.0,87682.0,0.02280955]
[1767252906324,0.01144,87691.0,87681.0,0.01140497]
[1767252906532,0.01144,87691.0,87683.0,0.02280955]
[1767252908005,0.01144,87691.0,87683.0,0.03421426]
[1767252908210,0.01144,87691.0,87683.0,0.02280955]
[1767252920723,0.007098,87691.0,87683.0,0.02280955]
[1767252921033,0.007098,87691.0,87684.0,0.01140458]
[1767252921203,0.007098,87691.0,87683.0,0.03421426]
[1767252921825,0.007098,87691.0,87683.0,0.02280955]
[1767252929184,0.007098,87691.0,87683.0,0.03421426]
[1767252929391,0.007098,87691.0,87683.0,0.02280955]
[1767252929737,0.007098,87691.0,87683.0,0.03421426]
[1767252930709,0.007098,87691.0,87683.0,0.02280955]
[1767252933777,0.007098,87691.0,87684.0,0.0611089]
[1767252934201,0.007098,87691.0,87684.0,0.04970432]
[1767252935915,0.0001449,87698.0,87684.0,0.04970432]
[1767252936116,0.01144,87692.0,87684.0,0.04970432]
[1767252936281,0.01144,87692.0,87686.0,0.01140432]
[1767252936636,0.01144,87692.0,87684.0,0.04970432]
[1767252936981,0.01144,87692.0,87684.0,0.0611089]
[1767252938343,0.01144,87692.0,87684.0,0.04970432]
[1767252939502,0.01144,87692.0,87683.0,0.02280955]
[1767252940889,0.04589358,87691.0,87683.0,0.02280955]
[1767252941090,0.04589358,87691.0,87683.0,0.02225955]
[1767252941298,0.04589358,87691.0,87673.0,0.01140602]
[1767252941514,0.56196218,87683.0,87676.0,0.03423756]
[1767252941713,0.56196218,87683.0,87670.0,0.01140641]
[1767252941714,0.01144,87682.0,87672.0,0.01140615]
[1767252941949,0.01144,87682.0,87670.0,0.01140641]
[1767252942139,0.01144,87682.0,87673.0,0.03423756]
[1767252942856,0.01144,87682.0,87669.0,0.01140654]
[1767252942857,0.04589358,87681.0,87668.0,0.01155157]
[1767252943014,0.5160686,87678.0,87670.0,0.01140641]
[1767252943218,0.5160686,87678.0,87669.0,0.01140654]
[1767252943855,0.04589358,87681.0,87670.0,0.01140641]
[1767252944199,0.04589358,87681.0,87669.0,0.01140654]
[1767252944621,0.04589358,87681.0,87670.0,0.01140641]
[1767252945572,0.04589358,87681.0,87669.0,0.01140654]
[1767252946452,0.04589358,87681.0,87670.0,0.01140641]
[1767252947325,0.04589358,87681.0,87671.0,0.01140628]
[1767252948402,0.04589358,87681.0,87670.0,0.01140641]
[1767252950710,0.04589358,87681.0,87672.0,0.01140615]
[1767252950926,0.04589358,87681.0,87671.0,0.01140628]
[1767252951129,0.04589358,87681.0,87672.0,0.01140615]
[1767252952738,0.04589358,87681.0,87671.0,0.01140628]
[1767252952953,0.04589358,87681.0,87672.0,0.01140615]
[1767252953337,0.01144,87682.0,87672.0,0.01140615]
[1767252954429,0.01144,87682.0,87671.0,0.01140628]
[1767252954616,0.01144,87682.0,87672.0,0.01140615]
[1767252955033,0.01144,87682.0,87671.0,0.01140628]
[1767252955267,0.01144,87682.0,87672.0,0.01140615]
[1767252957941,0.01144,87682.0,87671.0,0.01140628]
[1767252958143,0.01144,87682.0,87672.0,0.01140615]
[1767252960412,0.01144,87682.0,87673.0,0.01140602]
[1767252960818,0.01144,87682.0,87672.0,0.01140615]
[1767252961018,0.01144,87682.0,87673.0,0.01140602]
[1767252961603,0.01144,87682.0,87673.0,0.05923068]
[1767252961801,0.01144,87682.0,87674.0,0.01140589]
[1767252962246,0.03424053,87689.0,87675.0,0.05923041]
[1767252962449,0.01144,87688.0,87677.0,0.04782466]
[1767252963658,0.01144,87688.0,87677.0,0.05923015]
[1767252964241,0.01144,87688.0,87678.0,0.04782466]
[1767252964773,0.01144,87688.0,87673.0,0.04782466]
[1767252965983,0.01144,87688.0,87673.0,0.05923068]
[1767252966173,0.01144,87688.0,87673.0,0.04782466]
[1767252966581,0.01144,87687.0,87673.0,0.04782466]
[1767252967175,0.01144,87687.0,87673.0,0.05923068]
[1767252969004,0.01144,87687.0,87674.0,0.01140589]
[1767252969168,0.01144,87687.0,87674.0,0.05923055]
[1767252969382,0.01144,87687.0,87674.0,0.04782466]
[1767252989744,0.5161656,87684.0,87674.0,0.04782466]
[1767252990338,0.01144,87687.0,87674.0,0.04782466]
[1767252990552,0.5161656,87684.0,87674.0,0.04782466]
[1767252991138,0.5161656,87684.0,87674.0,0.04739813]
[1767252991335,0.5161656,87684.0,87674.0,0.04734109]
[1767252991503,0.5161656,87684.0,87668.0,0.0001449]
[1767252991504,0.53227574,87684.0,87668.0,0.0001449]
[1767252991704,0.5161656,87680.0,87668.0,0.0001449]
[1767252991906,0.01144,87679.0,87668.0,0.0001449]
[1767252992349,0.01144,87679.0,87668.0,8.838e-05]
[1767252992971,0.01144,87679.0,87668.0,0.01149505]
[1767252994042,0.01144,87679.0,87668.0,8.838e-05]
[1767252994439,0.01144,87679.0,87668.0,0.01149505]
[1767252994640,0.01144,87679.0,87668.0,8.838e-05]
[1767252995057,0.01144,87679.0,87668.0,0.01149505]
[1767252995774,0.01144,87679.0,87669.0,0.01140654]
[1767252995956,0.01144,87679.0,87670.0,0.01140641]
[1767252996158,0.01144,87679.0,87669.0,0.01140654]
[1767252996883,0.01144,87679.0,87668.0,0.01149505]
[1767252997101,0.01144,87679.0,87669.0,0.01140654]
[1767252997636,0.01144,87679.0,87668.0,0.01149505]
[1767252998878,0.01144,87679.0,87669.0,0.01140654]
[1767252999259,0.01144,87679.0,87668.0,0.01149505]
[1767253001633,0.01144,87679.0,87668.0,0.06105524]
[1767253004926,0.01144,87679.0,87668.0,0.04964857]
[1767253005900,0.01144,87679.0,87668.0,0.06105524]
[1767253006110,0.01144,87679.0,87668.0,0.04964857]
[1767253006571,0.01144,87679.0,87668.0,0.06105524]
[1767253007838,0.00257947,87679.0,87669.0,0.04956019]
[1767253008038,0.00147947,87679.0,87669.0,0.04956019]
[1767253008228,0.00147947,87679.0,87669.0,0.06096673]
[1767253008634,0.00147947,87679.0,87669.0,0.04956019]
[1767253009164,0.00147947,87679.0,87669.0,0.06096673]
[1767253009525,0.00147947,87679.0,87669.0,0.04956019]
[1767253015979,0.00147947,87679.0,87669.0,0.06096673]
[1767253016279,0.00147947,87679.0,87669.0,0.04956019]
[1767253018548,0.00147947,87679.0,87669.0,0.06096673]
[1767253018749,0.00147947,87679.0,87669.0,0.04956019]
[1767253032648,0.00147947,87679.0,87669.0,0.06096673]
[1767253032841,0.00147947,87679.0,87671.0,0.04961783]
[1767253033022,0.00147947,87679.0,87671.0,0.06102411]
[1767253033339,0.01144,87678.0,87672.0,0.01140615]
[1767253033541,0.01144,87678.0,87672.0,0.04961783]
[1767253041756,0.01144,87678.0,87672.0,0.06102398]
[1767253042171,0.01144,87678.0,87672.0,0.04961783]
[1767253042347,0.01144,87678.0,87672.0,0.06102398]
[1767253043472,0.01144,87678.0,87672.0,0.05980209]
[1767253046683,0.01144,87678.0,87673.0,0.04839594]
[1767253047809,0.01144,87678.0,87673.0,0.05980196]
[1767253048905,0.01144,87678.0,87673.0,0.04839594]
[1767253050825,0.01144,87678.0,87673.0,0.05980196]
[1767253050989,0.01144,87678.0,87673.0,0.04839594]
[1767253052957,0.01144,87678.0,87673.0,0.05980196]
[1767253053116,0.01144,87678.0,87673.0,0.04839594]
[1767253053934,0.01144,87678.0,87673.0,0.05980196]
[1767253054170,0.01144,87678.0,87673.0,0.04839594]
[1767253054642,0.01144,87678.0,87673.0,0.05980196]
[1767253055641,0.01144,87678.0,87673.0,0.04839594]
[1767253055940,0.01144,87678.0,87672.0,0.01140615]
[1767253056084,0.01144,87678.0,87674.0,0.04839594]
[1767253056285,0.01144,87678.0,87674.0,0.05980183]
[1767253056699,0.01144,87678.0,87674.0,0.04839594]
[1767253062986,0.01144,87681.0,87678.0,0.04839594]
[1767253063190,0.01144,87681.0,87678.0,0.0598013]
[1767253063954,0.5162165,87690.0,87680.0,0.0114051]
[1767253064169,0.01144,87684.0,87681.0,0.04839594]
[1767253064381,0.04564,87697.0,87681.0,0.04839594]
[1767253064382,0.04695241,87712.0,87695.0,0.04839594]
[1767253064632,0.01144,87708.0,87696.0,0.04839594]
[1767253064790,0.02481691,87707.0,87696.0,0.04839594]
[1767253064996,0.02467201,87706.0,87696.0,0.04839594]
[1767253065212,0.0001449,87707.0,87696.0,0.04784594]
[1767253065404,0.0001449,87707.0,87696.0,0.04615765]
[1767253065752,0.0001449,87707.0,87694.0,0.05979922]
[1767253066106,0.0001449,87707.0,87695.0,0.01140315]
[1767253066307,0.0001449,87707.0,87695.0,0.05979909]
[1767253066721,0.0001449,87707.0,87695.0,0.04839594]
[1767253067472,0.0001449,87707.0,87695.0,0.05979909]
[1767253067591,0.0001449,87707.0,87695.0,0.04839594]
[1767253068008,0.0001449,87707.0,87695.0,0.05979909]
[1767253069836,0.0001449,87707.0,87695.0,0.04839594]
[1767253070449,0.0001449,87707.0,87695.0,0.05979909]
[1767253070855,0.0001449,87707.0,87695.0,0.04839594]
[1767253071549,0.0001449,87707.0,87692.0,0.01140354]
[1767253071753,0.0001449,87707.0,87690.0,0.06012104]
[1767253072923,0.0001449,87707.0,87691.0,0.01140367]
[1767253073497,0.5162165,87701.0,87690.0,0.04868104]
[1767253073700,0.5162165,87701.0,87689.0,0.01140393]
[1767253073918,0.5162165,87701.0,87691.0,0.03033843]
[1767253074874,0.5162165,87701.0,87691.0,0.0417421]
[1767253075270,0.5162165,87701.0,87691.0,0.03033843]
[1767253078630,0.01144,87700.0,87691.0,0.03033843]
[1767253080640,0.01144,87700.0,87688.0,0.01144]